fUSD/lending_fUSD_20260525
["ID","MTS","AMOUNT","RATE_DAILY","PERIOD"]
[422967792,1779691848000,-1922.77,0.00013328,2]
[422967757,1779691848000,-164.87,0.00013015,2]
[422967794,1779691848000,-813.03915081,0.00013386,2]
[422967790,1779691848000,-9337.25791284,0.00013311,2]
[422967788,1779691848000,-151.0,0.00013311,2]
[422967789,1779691848000,-151.0,0.00013311,2]
[422967785,1779691848000,-152.90344,0.00013311,2]
[422967779,1779691848000,-151.0,0.00013278,2]
[422967778,1779691848000,-151.0,0.00013278,2]
[422967782,1779691848000,-155.62,0.00013299,2]
[422967775,1779691848000,-260.783653,0.00013151,2]
[422967780,1779691848000,-151.0,0.00013278,2]
[422967784,1779691848000,-152.90344,0.00013311,2]
[422967783,1779691848000,-6486.67064116,0.00013309,2]
[422967793,1779691848000,-350.0,0.00013334,2]
[422967777,1779691848000,-2620.0,0.00013237,5]
[422967781,1779691848000,-3636.0,0.00013294,2]
[422967764,1779691848000,-928.0,0.00013139,2]
[422967773,1779691848000,-151.0,0.00013151,2]
[422967765,1779691848000,-1278.471,0.00013139,2]
[422967769,1779691848000,-934.559,0.00013139,2]
[422967762,1779691848000,-626.0,0.00013139,2]
[422967767,1779691848000,-1227.971,0.00013139,2]
[422967774,1779691848000,-151.0,0.00013151,2]
[422967771,1779691848000,-151.0,0.00013151,2]
[422967768,1779691848000,-6061.0,0.00013139,2]
[422967770,1779691848000,-151.0,0.00013151,2]
[422967776,1779691848000,-169.3,0.00013189,2]
[422967786,1779691848000,-152.90344,0.00013311,2]
[422967772,1779691848000,-151.0,0.00013151,2]
[422967787,1779691848000,-152.90344,0.00013311,2]
[422967795,1779691918000,-200.0,0.00012054,2]
[422968113,1779692875000,159.72,5.814e-05,2]
[422968115,1779692876000,159.72,8.14e-05,2]
[422968114,1779692876000,159.72,6.977e-05,2]
[422968133,1779693031000,-227.97,0.00011548,2]
[422968135,1779693031000,-159.72,0.00011629,2]
[422968138,1779693031000,-769.1,0.0001171,2]
[422968137,1779693031000,-166.44,0.00011673,2]
[422968145,1779693031000,-9999.99,0.00011739,2]
[422968141,1779693031000,-169.49,0.00011739,2]
[422968140,1779693031000,-382.05,0.00011739,2]
[422968143,1779693031000,-999.99,0.00011739,2]
[422968139,1779693031000,-200.0,0.00011735,2]
[422968131,1779693031000,-13810.83075134,0.00011227,2]
[422968124,1779693031000,-127.02222698,0.00011226,2]
[422968130,1779693031000,-5533.0,0.00011227,2]
[422968127,1779693031000,-4667.31855558,0.00011227,2]
[422968128,1779693031000,-348.50366075,0.00011227,2]
[422968126,1779693031000,-5938.88703233,0.00011227,2]
[422968125,1779693031000,-1200.0,0.00011226,2]
[422968123,1779693031000,-172.97777302,0.00011226,2]
[422968121,1779693031000,-159.72,9.303e-05,2]
[422968147,1779693031000,-1569.8,0.00011739,2]
[422968122,1779693031000,-159.72,0.00010466,2]
[422968129,1779693031000,-824.83,0.00011227,2]
[422968149,1779693031000,-9999.99,0.00011739,2]
[422968195,1779693031000,-767.92626115,0.00012558,2]
[422968158,1779693031000,-509.08,0.00011953,2]
[422968199,1779693031000,-5916.51774325,0.00012558,2]
[422968197,1779693031000,-304.08666528,0.00012558,2]
[422968193,1779693031000,-2500.0,0.00012558,2]
[422968191,1779693031000,-5000.0,0.00012558,2]
[422968178,1779693031000,-1000.0,0.000125,4]
[422968189,1779693031000,-617.9993,0.00012558,2]
[422968182,1779693031000,-1946.00119242,0.00012556,2]
[422968176,1779693031000,-1680.0,0.00012348,2]
[422968180,1779693031000,-150.0,0.00012555,2]
[422968184,1779693031000,-2261.8456,0.00012556,2]
[422968151,1779693031000,-499.99,0.00011739,2]
[422968174,1779693031000,-420.0,0.00012333,2]
[422968160,1779693031000,-500.0,0.00012043,2]
[422968164,1779693031000,-600.0,0.00012054,2]
[422968166,1779693031000,-500.0,0.00012054,2]
[422968153,1779693031000,-2656.54,0.00011739,2]
[422968186,1779693031000,-1828.9471,0.00012556,2]
[422968168,1779693031000,-545.47,0.0001209,2]
[422968155,1779693031000,-9999.99,0.00011739,2]
[422968170,1779693031000,-155.62,0.00012255,2]
[422968172,1779693031000,-285.59,0.00012329,2]
[422968162,1779693031000,-800.0,0.00012054,2]
[422968226,1779693032000,-500.0,0.00012657,2]
[422968224,1779693032000,-500.0,0.00012657,2]
[422968238,1779693032000,-500.0,0.00012657,2]
[422968240,1779693032000,-500.0,0.00012657,2]
[422968245,1779693032000,-500.0,0.00012657,2]
[422968247,1779693032000,-500.0,0.00012657,2]
[422968249,1779693032000,-500.0,0.00012657,2]
[422968236,1779693032000,-500.0,0.00012657,2]
[422968258,1779693032000,-500.0,0.00012657,2]
[422968260,1779693032000,-500.0,0.00012657,2]
[422968261,1779693032000,-578.3202563,0.00012657,2]
[422968242,1779693032000,-500.0,0.00012657,2]
[422968228,1779693032000,-500.0,0.00012657,2]
[422968222,1779693032000,-500.0,0.00012657,2]
[422968234,1779693032000,-500.0,0.00012657,2]
[422968252,1779693032000,-500.0,0.00012657,2]
[422968232,1779693032000,-500.0,0.00012657,2]
[422968219,1779693032000,-500.0,0.00012657,2]
[422968215,1779693032000,-500.0,0.00012657,2]
[422968201,1779693032000,-2000.0,0.000126,4]
[422968217,1779693032000,-500.0,0.00012657,2]
[422968211,1779693032000,-500.0,0.00012657,2]
[422968213,1779693032000,-292.23148352,0.00012657,2]
[422968203,1779693032000,-3304.993,0.00012637,2]
[422968207,1779693032000,-363.03816205,0.00012648,2]
[422968209,1779693032000,-17645.24,0.00012656,2]
[422968205,1779693032000,-192.664,0.00012637,2]
[422968230,1779693032000,-500.0,0.00012657,2]
[422968262,1779693032000,-500.0,0.00012657,2]
[422968250,1779693032000,-500.0,0.00012657,2]
[422968286,1779693032000,-1366.0,0.00012657,5]
[422968288,1779693032000,-46136.44599817,0.00012658,2]
[422968277,1779693032000,-500.0,0.00012657,2]
[422968283,1779693032000,-151.66542978,0.00012657,2]
[422968280,1779693032000,-500.0,0.00012657,2]
[422968278,1779693032000,-500.0,0.00012657,2]
[422968275,1779693032000,-500.0,0.00012657,2]
[422968279,1779693032000,-527.85626579,0.00012657,2]
[422968285,1779693032000,-1710.0,0.00012657,5]
[422968284,1779693032000,-315.7693555,0.00012657,2]
[422968281,1779693032000,-500.0,0.00012657,2]
[422968282,1779693032000,-436.52956757,0.00012657,2]
[422968257,1779693032000,-500.0,0.00012657,2]
[422968276,1779693032000,-500.0,0.00012657,2]
[422968272,1779693032000,-500.0,0.00012657,2]
[422968271,1779693032000,-500.0,0.00012657,2]
[422968270,1779693032000,-500.0,0.00012657,2]
[422968269,1779693032000,-500.0,0.00012657,2]
[422968273,1779693032000,-407.83202563,0.00012657,2]
[422968274,1779693032000,-500.0,0.00012657,2]
[422968268,1779693032000,-500.0,0.00012657,2]
[422968265,1779693032000,-500.0,0.00012657,2]
[422968266,1779693032000,-183.83299403,0.00012657,2]
[422968267,1779693032000,-500.0,0.00012657,2]
[422968263,1779693032000,-500.0,0.00012657,2]
[422968264,1779693032000,-500.0,0.00012657,2]
[422968254,1779693032000,-500.0,0.00012657,2]
[422968259,1779693032000,-500.0,0.00012657,2]
[422968289,1779693032000,-8670.05619639,0.00012658,2]
[422968287,1779693032000,-145091.07987697,0.00012658,2]
[422968292,1779693037000,-1466.1997504,0.00012558,2]
[422968290,1779693037000,-341.50517263,0.00012558,2]
[422968293,1779693037000,-1314.70254899,0.00012558,2]
[422968291,1779693037000,-924.89681769,0.00012558,2]
[422968295,1779693037000,-3453.47710791,0.00012658,2]
[422968297,1779693037000,-3216.5170958,0.00012658,2]
[422968294,1779693037000,-744.52289209,0.00012558,2]
[422968296,1779693037000,-880.12725964,0.00012658,2]
[422968351,1779693040000,-1275.96116207,0.00012658,2]
[422968350,1779693040000,-19751.56981163,0.00012658,2]
[422968505,1779693663000,196.25,6.024e-05,2]
[422968504,1779693663000,196.25,5.723e-05,2]
[422968510,1779693664000,196.25,7.53e-05,2]
[422968509,1779693664000,196.25,7.229e-05,2]
[422968508,1779693664000,196.25,6.928e-05,2]
[422968507,1779693664000,196.25,6.627e-05,2]
[422968506,1779693664000,196.25,6.325e-05,2]
[422968514,1779693665000,196.25,8.735e-05,2]
[422968513,1779693665000,196.25,8.434e-05,2]
[422968512,1779693665000,196.25,8.133e-05,2]
[422968511,1779693665000,196.25,7.831e-05,2]
[422968516,1779693686000,-196.25,9.036e-05,2]
[422968518,1779693723000,-293.45,9.174e-05,2]
[422968521,1779693772000,-97.2,9.639e-05,2]
[422968523,1779693772000,-194.4,9.94e-05,2]
[422968520,1779693772000,-196.25,9.337e-05,2]
[422968524,1779693772000,-1.85,9.94e-05,2]
[422968525,1779693772000,-194.4,0.00010241,2]
[422968522,1779693772000,-99.05,9.639e-05,2]
[422968528,1779693821000,-1.85,0.00010542,2]
[422968529,1779693821000,-194.4,0.000107,2]
[422968527,1779693821000,-194.4,0.00010542,2]
[422968526,1779693821000,-1.85,0.00010241,2]
[422968530,1779693822000,-196.25,0.000107,2]
[422968531,1779693823000,-1.85,0.000107,2]
[422968534,1779693872000,-1.85,0.000107,2]
[422968536,1779693872000,-1.85,0.000107,2]
[422968535,1779693872000,152.0,0.00012909,7]
[422968538,1779693873000,-5000.01,0.000107,2]
[422968537,1779693873000,-1.85,0.000107,2]
[422968539,1779693922000,-5000.01,0.000107,2]
[422968543,1779693923000,-215.38528485,0.000107,2]
[422968541,1779693923000,-5000.01,0.000107,2]
[422968542,1779693923000,-3147.15819675,0.000107,2]
[422968540,1779693923000,-5000.01,0.000107,2]
[422968544,1779693923000,-196.25,0.00010843,2]
[422968547,1779693923000,-1053.1465184,0.00011177,2]
[422968545,1779693923000,-191.82,0.0001104,2]
[422968546,1779693923000,-196.25,0.00011145,2]
[422968670,1779693973000,-716.29376416,0.00011775,2]
[422968668,1779693973000,-3020.97623584,0.000117,2]
[422968669,1779693973000,-1262.74,0.00011736,2]
[422968664,1779693973000,-196.25,0.00011446,2]
[422968665,1779693973000,-1262.74,0.00011456,2]
[422968667,1779693973000,-3046.4265184,0.000117,2]
[422968666,1779693973000,-285.0,0.00011681,2]
[422968663,1779693973000,-209.5934816,0.00011177,2]
[422968674,1779693974000,-209.5934816,0.00011775,2]
[422968671,1779693974000,-186.29109748,0.00011763,2]
[422968673,1779693974000,-1356.99536668,0.00011775,2]
[422968672,1779693974000,-3456.72353584,0.00011775,2]
[422968676,1779694022000,-209.5934816,0.00011775,2]
[422968678,1779694023000,-209.5934816,0.00011775,2]
[422968677,1779694023000,-209.5934816,0.00011775,2]
[422968680,1779694023000,-4700.01,0.00011775,2]
[422968679,1779694023000,-300.0,0.00011774,2]
[422968683,1779694072000,-2500.0,0.00011775,2]
[422968688,1779694072000,-296.28444211,0.00011874,2]
[422968687,1779694072000,-1000.0,0.00011874,2]
[422968685,1779694072000,-658.2225096,0.0001179,2]
[422968684,1779694072000,-191.02,0.00011781,2]
[422968682,1779694072000,-112.45760692,0.00011775,2]
[422968686,1779694072000,-242.02544137,0.00011865,2]
[422968689,1779694073000,-923.95936315,0.00011874,2]
[422968690,1779694073000,-170.63423239,0.00011874,2]
[422968692,1779694073000,-666.0,0.00011874,2]
[422968693,1779694073000,-300.0,0.00011874,2]
[422968697,1779694073000,-0.01,0.00011875,2]
[422968695,1779694073000,-1973.41640446,0.00011875,2]
[422968694,1779694073000,-666.0,0.00011874,2]
[422968696,1779694073000,-5000.0,0.00011775,2]
[422968698,1779694073000,-112.45760692,0.00011873,2]
[422968691,1779694073000,-300.0,0.00011874,2]
[422968699,1779694121000,-112.45760692,0.00011775,2]
[422968701,1779694122000,-112.45760692,0.00011775,2]
[422968700,1779694122000,-112.45760692,0.00011775,2]
[422968702,1779694136000,-37.54239308,0.00011286,2]
[422968713,1779694222000,-37.37282076,0.00011286,2]
[422968712,1779694222000,-37.54239308,0.00011286,2]
[422968711,1779694222000,-37.54239308,0.00011286,2]
[422968714,1779694222000,-4962.63717924,0.00011775,2]
[422968715,1779694223000,-150.0,0.00011775,2]
[422969980,1779694271000,-112.45760692,0.00011775,2]
[422969986,1779694320000,-112.45760692,0.00011775,2]
[422969985,1779694320000,-112.45760692,0.00011775,2]
[422969984,1779694320000,-112.45760692,0.00011775,2]
[422969992,1779694321000,-112.45760692,0.00011775,2]
[422969991,1779694321000,-112.45760692,0.00011775,2]
[422969990,1779694321000,148.0,0.00012547,10]
[422969987,1779694321000,500.0,0.00011974,7]
[422969988,1779694321000,500.0,0.00012547,8]
[422969989,1779694321000,500.0,0.00012547,9]
[422969993,1779694322000,-112.45760692,0.00011774,2]
[422969995,1779694323000,-1247.53557791,0.00011775,2]
[422969994,1779694323000,-1087.54239308,0.00011774,2]
[422969996,1779694371000,-412.79675156,0.00011775,2]
[422969997,1779694371000,-68.62604824,0.00011775,2]
[422969998,1779694371000,-285.0,0.00011775,2]
[422970000,1779694371000,-670.93480315,0.00011775,2]
[422969999,1779694371000,-2146.37395176,0.00011775,2]
[422970001,1779694371000,-4329.06519685,0.00011775,2]
[422970002,1779694371000,-800.0,0.000118,4]
[422970003,1779694371000,-4312.64446362,0.000118,2]
[422970004,1779694371000,-170.00362552,0.000118,2]
[422970009,1779694371000,-500.0,0.00011874,5]
[422970008,1779694371000,-500.0,0.00011874,4]
[422970007,1779694371000,-500.0,0.00011874,3]
[422970010,1779694371000,-500.0,0.00011874,6]
[422970005,1779694371000,-1751.40107316,0.00011874,2]
[422970013,1779694371000,-500.0,0.00011874,2]
[422970011,1779694371000,-9999.99,0.00011874,2]
[422970025,1779694371000,-2335.07797099,0.00011875,2]
[422970024,1779694371000,-13029.4183233,0.00011875,2]
[422970021,1779694371000,-604.56203847,0.00011874,2]
[422970022,1779694371000,-119355.50569883,0.00011875,2]
[422970023,1779694371000,-7762.41976657,0.00011875,2]
[422970020,1779694371000,-500.0,0.00011874,2]
[422970006,1779694371000,-500.0,0.00011874,2]
[422970019,1779694371000,-500.0,0.00011874,2]
[422970017,1779694371000,-159.6143964,0.00011874,2]
[422970016,1779694371000,-390.78320256,0.00011874,2]
[422970018,1779694371000,-221.03854885,0.00011874,2]
[422970015,1779694371000,-569.49938605,0.00011874,2]
[422970014,1779694371000,-500.0,0.00011874,2]
[422970012,1779694371000,-500.0,0.00011874,2]
[422970027,1779694372000,-2212.43482613,0.00011875,2]
[422970028,1779694372000,-1699.6884109,0.00011875,2]
[422970031,1779694372000,-689.02440219,0.00011875,2]
[422970026,1779694372000,-292.399994,0.00011875,2]
[422970029,1779694372000,-313.7685406,0.00011875,2]
[422970032,1779694372000,-400.0,0.00011875,2]
[422970033,1779694372000,-23110.95553961,0.00011875,2]
[422970030,1779694372000,-4504.36279679,0.00011875,2]
[422970053,1779694420000,-1751.4010731,0.0001221,2]
[422970049,1779694420000,-506.48119266,0.00012054,2]
[422970051,1779694420000,-202.72444352,0.00012119,2]
[422970052,1779694420000,-4312.64446357,0.00012133,2]
[422970047,1779694420000,-900.0,0.00012054,2]
[422970048,1779694420000,-500.0,0.00012054,2]
[422970050,1779694420000,-70955.96368329,0.00012113,2]
[422970046,1779694420000,-1262.74,0.00012015,2]
[422970044,1779694420000,-31123.37,0.00011975,2]
[422970041,1779694420000,-666.0,0.00011974,2]
[422970038,1779694420000,-1238079.18562563,0.00011875,2]
[422970040,1779694420000,-300.0,0.00011974,2]
[422970042,1779694420000,-300.0,0.00011974,2]
[422970043,1779694420000,-670.62440678,0.00011974,2]
[422970057,1779694420000,-658.22250955,0.00012308,2]
[422970036,1779694420000,-5450.01,0.00011775,2]
[422970037,1779694420000,-242.02544137,0.00011865,2]
[422970045,1779694420000,-151.0,0.00012,2]
[422970039,1779694420000,-1700.0,0.000119,4]
[422970055,1779694420000,-170.00362547,0.00012243,2]
[422970056,1779694420000,-1262.74,0.00012294,2]
[422970054,1779694420000,-500.0,0.00012219,2]
[422970074,1779694420000,-1500000.0,0.00012548,2]
[422970073,1779694420000,-500.0,0.00012547,13]
[422970072,1779694420000,-500.0,0.00012547,12]
[422970071,1779694420000,-500.0,0.00012547,11]
[422970069,1779694420000,-300.0,0.00012547,2]
[422970067,1779694420000,-666.0,0.00012547,2]
[422970068,1779694420000,-300.0,0.00012547,2]
[422970070,1779694420000,-352.0,0.00012547,10]
[422970066,1779694420000,-300.0,0.00012547,2]
[422970063,1779694420000,-4312.64446357,0.00012467,2]
[422970065,1779694420000,-1751.4010731,0.00012546,2]
[422970059,1779694420000,-300.0,0.00012447,2]
[422970060,1779694420000,-300.0,0.00012447,2]
[422970058,1779694420000,-237.99,0.00012329,2]
[422970062,1779694420000,-2000.0,0.00012448,2]
[422970064,1779694420000,-72798.45332054,0.0001252,2]
[422970061,1779694420000,-33211.5749,0.00012448,2]
[422970112,1779694421000,-6876.0,0.00012877,2]
[422970114,1779694421000,-4200.0,0.000129,4]
[422970110,1779694421000,-500.0,0.00012822,2]
[422970109,1779694421000,-151.0,0.00012814,2]
[422970105,1779694421000,-1716.0,0.00012781,5]
[422970118,1779694421000,-1680.0,0.00012951,2]
[422970108,1779694421000,-151.0,0.00012814,2]
[422970103,1779694421000,-274.36693585,0.00012774,2]
[422970104,1779694421000,-2137.0,0.00012781,5]
[422970111,1779694421000,-658.22250955,0.00012827,2]
[422970107,1779694421000,-4312.64446357,0.000128,2]
[422970115,1779694421000,-300.0,0.00012916,2]
[422970125,1779694421000,-226.14967342,0.0001305,2]
[422970116,1779694421000,-300.0,0.00012916,2]
[422970113,1779694421000,-1751.4010731,0.00012883,2]
[422970120,1779694421000,-227.97,0.00012991,2]
[422970119,1779694421000,-532.32,0.00012977,2]
[422970121,1779694421000,-300.0,0.00013012,2]
[422970129,1779694421000,-151.0,0.00013151,2]
[422970124,1779694421000,-350.0,0.00013032,2]
[422970106,1779694421000,-3400.0,0.000128,4]
[422970123,1779694421000,-4602.751773,0.00013013,2]
[422970122,1779694421000,-723448.23684385,0.00013013,2]
[422970127,1779694421000,-170.00362547,0.00013129,2]
[422970128,1779694421000,-4312.64446357,0.00013133,2]
[422970117,1779694421000,-372273.50247729,0.00012917,2]
[422970102,1779694421000,-276.0,0.00012767,2]
[422970088,1779694421000,-150.0,0.00012642,2]
[422970101,1779694421000,-2500.0,0.000127,4]
[422970126,1779694421000,-264.36486527,0.0001305,2]
[422970076,1779694421000,-12415.11942002,0.0001264,2]
[422970075,1779694421000,-1621.541625,0.00012592,2]
[422970077,1779694421000,-150.0,0.00012642,2]
[422970079,1779694421000,-150.0,0.00012642,2]
[422970078,1779694421000,-150.0,0.00012642,2]
[422970080,1779694421000,-150.0,0.00012642,2]
[422970082,1779694421000,-150.0,0.00012642,2]
[422970081,1779694421000,-150.0,0.00012642,2]
[422970093,1779694421000,-300.0,0.00012647,2]
[422970092,1779694421000,-300.0,0.00012647,2]
[422970094,1779694421000,-300.0,0.00012647,2]
[422970085,1779694421000,-150.0,0.00012642,2]
[422970084,1779694421000,-150.0,0.00012642,2]
[422970086,1779694421000,-150.0,0.00012642,2]
[422970090,1779694421000,-184.48877466,0.00012642,2]
[422970089,1779694421000,-150.0,0.00012642,2]
[422970083,1779694421000,-150.0,0.00012642,2]
[422970087,1779694421000,-250.0,0.00012642,2]
[422970091,1779694421000,-166.95,0.00012647,14]
[422970095,1779694421000,-11330.4402818,0.00012648,2]
[422970096,1779694421000,-228052.0084475,0.00012648,2]
[422970097,1779694421000,-16935.8851902,0.00012648,2]
[422970098,1779694421000,-3081.7043939,0.00012648,2]
[422970100,1779694421000,-170.00362547,0.00012686,2]
[422970099,1779694421000,-151.0,0.00012655,2]
[422970131,1779694421000,-151.0,0.00013151,2]
[422970180,1779694421000,-12582.411444,0.00013597,2]
[422970130,1779694421000,-151.0,0.00013151,2]
[422970162,1779694421000,-247.554,0.00013424,2]
[422970163,1779694421000,-194.781,0.00013424,2]
[422970165,1779694421000,-250.0,0.00013424,2]
[422970167,1779694421000,-151.0,0.00013424,2]
[422970166,1779694421000,-245.485,0.00013424,2]
[422970168,1779694421000,-900.0,0.00013424,2]
[422970169,1779694421000,-500.0,0.00013424,2]
[422970176,1779694421000,-1751.4010731,0.00013555,2]
[422970170,1779694421000,-4312.64446357,0.00013467,2]
[422970172,1779694421000,-1000.0,0.000135,2]
[422970173,1779694421000,-202.72444351,0.0001351,2]
[422970171,1779694421000,-500.0,0.00013496,8]
[422970175,1779694421000,-210.09275809,0.00013555,2]
[422970178,1779694421000,-3335.44527172,0.00013597,2]
[422970188,1779694421000,-474.2752008,0.00013695,2]
[422970177,1779694421000,-150.0,0.00013597,2]
[422970179,1779694421000,-150.0,0.00013597,2]
[422970181,1779694421000,-150.0,0.00013597,2]
[422970183,1779694421000,-2401.05921918,0.00013604,2]
[422970185,1779694421000,-152.90344,0.00013609,2]
[422970184,1779694421000,-152.90344,0.00013609,2]
[422970182,1779694421000,-1942.75256228,0.00013597,2]
[422970186,1779694421000,-152.90344,0.00013609,2]
[422970187,1779694421000,-152.90344,0.00013609,2]
[422970141,1779694421000,-658.22250955,0.00013345,2]
[422970160,1779694421000,-150.501,0.00013424,2]
[422970164,1779694421000,-247.404,0.00013424,2]
[422970174,1779694421000,-191.4554308,0.00013529,2]
[422970159,1779694421000,-170.0,0.00013424,2]
[422970134,1779694421000,-1271.0,0.0001319,2]
[422970161,1779694421000,-150.147,0.00013424,2]
[422970132,1779694421000,-151.0,0.00013151,2]
[422970133,1779694421000,-519.0,0.0001319,2]
[422970135,1779694421000,-1751.4010731,0.00013219,2]
[422970137,1779694421000,-2000.0,0.0001325,2]
[422970136,1779694421000,-2000.0,0.0001325,2]
[422970140,1779694421000,-26213.124312,0.00013325,2]
[422970138,1779694421000,-2000.0,0.0001325,2]
[422970142,1779694421000,-9186.96084919,0.00013386,2]
[422970144,1779694421000,-2000.0,0.00013386,2]
[422970146,1779694421000,-1031.0,0.00013386,2]
[422970153,1779694421000,-1031.0,0.00013386,2]
[422970139,1779694421000,-306.43491612,0.00013324,2]
[422970147,1779694421000,-1031.0,0.00013386,2]
[422970157,1779694421000,-150.0,0.00013424,2]
[422970143,1779694421000,-2000.0,0.00013386,2]
[422970158,1779694421000,-150.11,0.00013424,2]
[422970156,1779694421000,-150.0,0.00013424,2]
[422970155,1779694421000,-520.188,0.00013386,2]
[422970150,1779694421000,-1031.0,0.00013386,2]
[422970154,1779694421000,-1031.0,0.00013386,2]
[422970151,1779694421000,-1031.0,0.00013386,2]
[422970152,1779694421000,-1031.0,0.00013386,2]
[422970148,1779694421000,-1031.0,0.00013386,2]
[422970145,1779694421000,-2000.0,0.00013386,2]
[422970149,1779694421000,-1031.0,0.00013386,2]
[422970233,1779694422000,-500.0,0.00013698,2]
[422970230,1779694422000,-500.0,0.00013698,2]
[422970225,1779694422000,-500.0,0.00013698,2]
[422970226,1779694422000,-500.0,0.00013698,2]
[422970223,1779694422000,-500.0,0.00013698,2]
[422970234,1779694422000,-500.0,0.00013698,2]
[422970224,1779694422000,-500.0,0.00013698,2]
[422970221,1779694422000,-500.0,0.00013698,2]
[422970217,1779694422000,-500.0,0.00013698,2]
[422970231,1779694422000,-500.0,0.00013698,2]
[422970220,1779694422000,-604.76395899,0.00013698,2]
[422970229,1779694422000,-500.0,0.00013698,2]
[422970241,1779694422000,-500.0,0.00013698,2]
[422970232,1779694422000,-500.0,0.00013698,2]
[422970228,1779694422000,-500.0,0.00013698,2]
[422970235,1779694422000,-500.0,0.00013698,2]
[422970237,1779694422000,-589.92504933,0.00013698,2]
[422970239,1779694422000,-500.0,0.00013698,2]
[422970240,1779694422000,-500.0,0.00013698,2]
[422970238,1779694422000,-500.0,0.00013698,2]
[422970236,1779694422000,-500.0,0.00013698,2]
[422970245,1779694422000,-500.0,0.00013698,2]
[422970243,1779694422000,-500.0,0.00013698,2]
[422970244,1779694422000,-500.0,0.00013698,2]
[422970218,1779694422000,-500.0,0.00013698,2]
[422970227,1779694422000,-500.0,0.00013698,2]
[422970219,1779694422000,-500.0,0.00013698,2]
[422970191,1779694422000,-500.0,0.00013698,2]
[422970213,1779694422000,-576.76,0.00013698,2]
[422970192,1779694422000,-500.0,0.00013698,2]
[422970242,1779694422000,-634.56644897,0.00013698,2]
[422970194,1779694422000,-500.0,0.00013698,2]
[422970193,1779694422000,-500.0,0.00013698,2]
[422970190,1779694422000,-500.0,0.00013698,2]
[422970195,1779694422000,-543.00996998,0.00013698,2]
[422970189,1779694422000,-500.0,0.00013698,2]
[422970198,1779694422000,-576.76,0.00013698,2]
[422970196,1779694422000,-576.76,0.00013698,2]
[422970197,1779694422000,-576.76,0.00013698,2]
[422970199,1779694422000,-576.76,0.00013698,2]
[422970210,1779694422000,-576.76,0.00013698,2]
[422970200,1779694422000,-576.76,0.00013698,2]
[422970202,1779694422000,-576.76,0.00013698,2]
[422970201,1779694422000,-576.76,0.00013698,2]
[422970207,1779694422000,-576.76,0.00013698,2]
[422970205,1779694422000,-576.76,0.00013698,2]
[422970203,1779694422000,-576.76,0.00013698,2]
[422970204,1779694422000,-576.76,0.00013698,2]
[422970208,1779694422000,-576.76,0.00013698,2]
[422970206,1779694422000,-576.76,0.00013698,2]
[422970209,1779694422000,-576.76,0.00013698,2]
[422970212,1779694422000,-576.76,0.00013698,2]
[422970222,1779694422000,-500.0,0.00013698,2]
[422970211,1779694422000,-576.76,0.00013698,2]
[422970216,1779694422000,-500.0,0.00013698,2]
[422970214,1779694422000,-500.0,0.00013698,2]
[422970215,1779694422000,-500.0,0.00013698,2]
[422970247,1779694422000,-500.0,0.00013698,2]
[422970249,1779694422000,-500.0,0.00013698,2]
[422970248,1779694422000,-500.0,0.00013698,2]
[422970279,1779694422000,-1995.66,0.00013698,2]
[422970281,1779694422000,-151.0,0.00013699,2]
[422970284,1779694422000,-152.070695,0.00013699,2]